Cogmind - Beta 13 @@@ ROGUE MODE // 2024.04.15 @ 16:32:46 Player: jupart Result: Destroyed by RW-7PV(R) with Subdweller Shrapnel Launcher Performance ------------- Evolutions (0) 0 Regions Visited (2) 400 Robots Destroyed (17) 85 Value Destroyed (368) 368 Prototype IDs (10) 200 Alien Tech Used (0) 0 Bonus (0) 0 TOTAL SCORE: 1053 Bonus ------- None Cogmind --------- Core Integrity 0/250 Matter 254/300 Energy 100/100 System Corruption 4% Temperature Cool (0) Movement Treading (240) Ox1 Location -10/Subcaves Parts ------- > --- POWER (1) -------- (None) > --- PROPULSION (2) --- Light Treads > --- UTILITY (2) ------ Scrap Shield > --- WEAPON (2) ------- Grenade Launcher Hammer > --- INVENTORY (5) ---- Flightbrick Battle Rifle Peak State ------------ > --- POWER ------------ Light Angular Momentum Engine > --- PROPULSION ------- Light Treads > --- UTILITY ---------- Scrap Shield > --- WEAPON ----------- Battle Rifle Hammer > --- INVENTORY -------- Flightbrick [Rating: 16] Favorites ----------- Power Ion Engine Engine Ion Engine Propulsion Light Treads Treads Light Treads Utility Small Storage Unit Device Sensor Array Storage Small Storage Unit Protection Scrap Shield Weapon Light Assault Rifle Energy Gun Particle Gun Ballistic Gun Light Assault Rifle Launcher Grenade Launcher Impact Weapon Hammer Build | -11 -10 -10 ------- Run | Yrd Mat Sub Slots Evolved . | . . . Power . | . . . Propulsion . | . . . Utility . | . . . Weapon . | . . . Parts Attached 27 | 8 13 6 Power 5 | 2 2 1 Engine 5 | 2 2 1 Core . | . . . Reactor . | . . . Propulsion 5 | 2 1 2 Treads 5 | 2 1 2 Leg . | . . . Wheel . | . . . Hover . | . . . Flight . | . . . Utility 5 | 1 3 1 Device 2 | . 2 . Storage 2 | 1 1 . Processor . | . . . Hackware . | . . . Protection 1 | . . 1 Artifact . | . . . Weapon 12 | 3 7 2 Energy Gun 3 | 1 2 . Energy Cannon . | . . . Ballistic Gun 5 | 2 2 1 Ballistic Cannon . | . . . Launcher 3 | . 2 1 Special Weapon . | . . . Impact Weapon 1 | . 1 . Slashing Weapon . | . . . Piercing Weapon . | . . . Special Melee Weapon . | . . . Unidentified Prototypes . | . . . Parts Lost 3 | . 1 2 Power 1 | . . 1 Propulsion 1 | . . 1 Utility 1 | . 1 . Weapon . | . . . Highest Loss Streak 1 | . 1 1 To Critical Strikes . | . . . Average Slot Usage (%) 89 | . 97 80 Engine 13 | . 13 13 Treads 26 | . 28 23 Device 6 | . 11 . Storage 7 | . 14 . Protection 6 | . . 14 Energy Gun 7 | . 11 1 Ballistic Gun 12 | . 11 12 Launcher 1 | . 1 . Impact Weapon 7 | . 2 14 Naked Turns . | . . . Heaviest Build 32 | 12 21 32 Greatest Support 40 | 40 40 40 Greatest Overweight (x) 10 | 3 . 10 Average Overweight (x) . | . . . Largest Inventory Capacity 10 | 8 10 10 Average Capacity 6 | 7 8 5 Most Carried 9 | 4 8 9 Average Carried 6 | 2 7 5 Final Capacity 10 | 8 10 5 Final Carried 8 | 4 8 5 Class Distribution -------------------- 100% | Mutant Dominant Class ---------------- Mutant | -10/Materials Mutant | -10/Subcaves Resources | -11 -10 -10 ----------- Run | Yrd Mat Sub Matter Collected 509 | 219 227 63 Remotely 141 | . 141 . Salvage Created 334 | . 281 53 Parts 26 | . 17 9 Haulers Intercepted . | . . . Recyclers Shooed . | . . . Parts Field Recycled . | . . . Retrieved Matter . | . . . Parts Self-Destructed 12 | . . 12 Prevented . | . . . Kills | -11 -10 -10 ------- Run | Yrd Mat Sub Combat Hostiles Destroyed 13 | . 8 5 Melee 1 | . . 1 Guns 5 | . 5 . AOE 7 | . 3 4 Classes Destroyed 6 | . 5 1 Worker 1 | . 1 . Builder 1 | . 1 . Watcher 2 | . 2 . Swarmer 6 | . 2 4 Grunt 6 | . 6 . Subdweller 1 | . . 1 Best Kill Streak 4 | . 4 4 Combat Bots Only 4 | . 2 4 Max Kills in Single Turn 4 | . 2 4 Gunslinging . | . . . Exploded 4 | . 1 4 Melee 1 | . . 1 Uniques/NPCs Destroyed . | . . . Combat | -11 -10 -10 -------- Run | Yrd Mat Sub Hostile Shots Fired 94 | . 42 52 Missed 28 | . 9 19 Damage Taken 1310 | . 353 957 Core 267 | . 30 237 Absorbed by Shields . | . . . Core Remaining (%) 100 | 100 . . Volleys Fired 27 | . 25 2 Largest 2 | . 2 1 Hottest 95 | . 95 65 Shots Fired 52 | . 49 3 Gun 47 | . 45 2 Cannon . | . . . Launcher 5 | . 4 1 Special . | . . . Kinetic 25 | . 24 1 Thermal 22 | . 21 1 Explosive 5 | . 4 1 Electromagnetic . | . . . Robot Hit Streak 16 | . 16 6 Robot Miss Streak 2 | . 2 . Penetration Max . | . . . Secondary Targets . | . . . Shots Hit Robots 46 | . 33 13 Core Hits 23 | . 17 6 Critical Kills . | . . . Critical Parts Destroyed . | . . . Critical Strikes . | . . . Melee Attacks 40 | . 1 39 Impact 40 | . 1 39 Slashing . | . . . Piercing . | . . . Sneak Attacks . | . . . Combat Hostiles . | . . . Follow-up Attacks . | . . . Damage Inflicted 1029 | . 608 421 Guns 319 | . 304 15 Cannons . | . . . Explosions 467 | . 276 191 Melee 243 | . 28 215 Ramming . | . . . Kinetic 131 | . 131 . Thermal 188 | . 173 15 Explosive 467 | . 276 191 Electromagnetic . | . . . Impact 243 | . 28 215 Slashing . | . . . Piercing . | . . . Highest Corruption 4 | . . 4 Average Corruption 4 | . . 4 Corruption Purged . | . . . Corruption Blocked . | . . . Effects 7 | . . 7 Matter Fused 2 | . . 2 Heat Flow Errors 1 | . . 1 Energy Discharges 2 | . . 2 Data Loss (major) 1 | . . 1 Misfires 1 | . . 1 Overload Shots . | . . . Overflow Damage 23 | . 23 . Projectiles . | . . . Explosions 15 | . 15 . Melee 8 | . 8 . Knockbacks 1 | . . 1 Impact 1 | . . 1 Kinetic . | . . . Secondary . | . . . Self-Inflicted Damage 32 | . . 32 Shots 1 | . . 1 Rammed . | . . . Targets Rammed . | . . . Kicked . | . . . Crushed . | . . . Highest Temperature 177 | . 136 177 Average Temperature 57 | . 55 86 Received Heat Transfer 219 | . 138 81 Siege Activations . | . . . Robots Corrupted . | . . . Combat Hostiles . | . . . Parts Fried 1 | . 1 . Impact Corruptions 1 | . 1 . Robots Melted . | . . . Combat Hostiles . | . . . Parts Melted . | . . . Heat Transferred 422 | . 385 37 Parts Sabotaged . | . . . Parts Stolen . | . . . Parts Stripped . | . . . Power Chain Reactions . | . . . Alert | -11 -10 -10 ------- Run | Yrd Mat Sub Peak Influence 142 | . 142 . Initial . | . . . Average 48 | . 51 . Maximum Alert Level . | . . . Low Security (%) 100 | 100 100 . Level 1 . | . . . Level 2 . | . . . Level 3 . | . . . Level 4 . | . . . Level 5 . | . . . High Security . | . . . Max Security . | . . . Squads Dispatched 1 | . 1 . Investigation . | . . . Extermination . | . . . Reinforcement 1 | . 1 . Assault . | . . . Garrison . | . . . Intercept . | . . . Searches Triggered . | . . . Construction Impeded . | . . . Haulers Reinforced . | . . . Active Scanning Responses . | . . . Cargo Convoy Interrupts . | . . . Stealth | -11 -10 -10 --------- Run | Yrd Mat Sub Distress Signals 3 | . 3 . Communications Jammed . | . . . Distress Signals . | . . . Times Spotted 47 | . 20 27 Peak Tracking Total 7 | . 4 7 Tactical Retreats 3 | . 1 2 Traps | -11 -10 -10 ------- Run | Yrd Mat Sub Traps Triggered 2 | . 1 1 Indirectly . | . . . Trap Hack Attempts . | . . . Triggered . | . . . Disarmed . | . . . Reprogrammed . | . . . Reused . | . . . Traps Extracted . | . . . Installed . | . . . Triggered . | . . . Machines | -11 -10 -10 ---------- Run | Yrd Mat Sub Machines Disabled 1 | . . 1 Max in Single Turn 1 | . . 1 Machines Repaired . | . . . Machines Dismantled . | . . . Machines Sabotaged . | . . . Overloaded Fab Kills . | . . . Hacking | -11 -10 -10 --------- Run | Yrd Mat Sub Machines Accessed 8 | . 7 1 Terminals 5 | . 5 . Fabricators . | . . . Repair Stations 1 | . 1 . Recycling Units 1 | . 1 . Scanalyzers . | . . . Garrison Access . | . . . Total Hacks 22 | . 13 9 Successful 15 | . 6 9 Failed 7 | . 7 . Catastrophic 1 | . 1 . Database Lockouts . | . . . Manual 2 | . 2 . Terminals 9 | . 9 . Fabricators . | . . . Repair Stations 2 | . 2 . Recycling Units 2 | . 2 . Scanalyzers . | . . . Garrison Access . | . . . Terminal Hacks 15 | . 6 9 Record 10 | . 2 8 Robot Analysis 1 | . 1 . Alert Level 1 | . 1 . Unreport Threat 1 | . 1 . Locate Traps 1 | . 1 . Derelict Proto ID Bank 1 | . . 1 Fabricator Hacks . | . . . Repair Station Hacks . | . . . Recycling Unit Hacks . | . . . Scanalyzer . | . . . Garrison Access Hacks . | . . . Unauthorized Hacks . | . . . Terminals . | . . . Fabricators . | . . . Repair Stations . | . . . Recycling Units . | . . . Scanalyzers . | . . . Garrison Access . | . . . Data Cores Recovered . | . . . Used . | . . . Hacking Detections 5 | . 5 . Full Trace Events . | . . . Feedback Events . | . . . Feedback Blocked . | . . . Robot Schematics Acquired . | . . . Robots Built . | . . . Authchips . | . . . Time . | . . . Total Robot Build Rating . | . . . Part Schematics Acquired . | . . . Parts Built . | . . . Authchips . | . . . Time . | . . . Total Part Build Rating . | . . . Parts Repaired . | . . . Time . | . . . Parts Recycled . | . . . Recycled Matter . | . . . Retrieved Matter . | . . . Retrieved Components . | . . . Parts Scanalyzed . | . . . Part Schematics Acquired . | . . . Parts Damaged . | . . . Bothacking | -11 -10 -10 ------------ Run | Yrd Mat Sub Used RIF Installer . | . . . Robots Hacked . | . . . Non-combat . | . . . Combat . | . . . Robot Hacks Applied . | . . . Relay Couplers Released . | . . . Fabnet Peak Effective % . | . . . Robots Rewired . | . . . Allies Hacked . | . . . Hacks Repelled . | . . . Allies | -11 -10 -10 -------- Run | Yrd Mat Sub Total Allies . | . . . Largest Group . | . . . Highest-Rated Group . | . . . Highest-Rated Ally . | . . . Total Orders . | . . . Ally Attacks . | . . . Total Damage . | . . . Kills . | . . . Allies Corrupted . | . . . Allies Melted . | . . . Intel | -11 -10 -10 ------- Run | Yrd Mat Sub Robot Analysis Total 1 | . 1 . Derelict Logs Recovered 1 | . . 1 Drone Launches . | . . . Drone Recoveries . | . . . Exploration | -11 -10 -10 ------------- Run | Yrd Mat Sub Turns Passed 2262 | 74 1246 942 Spaces Moved 1071 | 42 593 436 Core 20 | 19 . 1 Treads 1051 | 23 593 435 Legs . | . . . Wheels . | . . . Hover . | . . . Flight . | . . . Fastest Speed 50 | 50 160 160 Average Speed 168 | 142 160 181 Slowest Speed 550 | 200 160 550 Overloaded Moves . | . . . Propulsion Burnouts . | . . . Robots Hopped . | . . . Cave-ins Triggered 1 | . . 1 Exploration Rate (%) 41 | 4 98 23 Regions Visited 2 Branch Regions 1 Pre-discovered Areas . | . . . Known Exits Taken . | . . . Unknown Exits Taken 2 | 1 1 . Scrap Searched 7 | . . 7 Spaces Dug 5 | . . 5 Terrain Destroyed 40 | . 28 12 Melee 5 | . . 5 Projectile . | . . . AOE 35 | . 28 7 Terrain Rammed . | . . . Walls Destroyed . | . . . Machines Disabled . | . . . Actions | -11 -10 -10 --------- Run | Yrd Mat Sub Total 1419 | 53 845 521 Wait 208 | . 194 14 Move 1069 | 41 592 436 Hop . | . . . Pick Up 16 | 3 10 3 Fast Attach 15 | 7 5 3 Attach 1 | . 1 . Detach 3 | 1 1 1 Swap 11 | 1 7 3 Drop 23 | . 9 14 Fire 27 | . 25 2 Melee 40 | . 1 39 Ram . | . . . Kick . | . . . Crush . | . . . Escape Stasis . | . . . Rewire . | . . . Trap . | . . . Miscellaneous 6 | . . 6 Route ------- -11/Scrapyard -10/Materials (discovered 5 exits: [*Mat x3] / [*Min] / *Sub) -10/Subcaves (discovered 1 exit: [*Rec]) History --------- Turn | Location | Event 30 | -11/Scrapyard | Discovered new exit (range 15) 75 | -11/Scrapyard | Entered Materials 311 | -10/Materials | Build established: Mutant 321 | -10/Materials | Discovered new exit (range 15) 611 | -10/Materials | Discovered new exit (range 6) 787 | -10/Materials | Discovered new exit (range 6) 1115 | -10/Materials | Discovered new exit (range 6) 1309 | -10/Materials | Discovered new exit (range 8) 1321 | -10/Materials | Entered Subcaves 1377 | -10/Subcaves | Ambushed by swarm of Subdwellers 1386 | -10/Subcaves | Ambushed by Subdwellers from Twisted Machinery 1534 | -10/Subcaves | Shifting Twisted Machinery released Sub. Monowheel 1701 | -10/Subcaves | Shifting Twisted Machinery released Battle Cannon 1895 | -10/Subcaves | A swath of the cavern ceiling suddenly collapsed 1955 | -10/Subcaves | Crushed by falling debris 1955 | -10/Subcaves | Core integrity fell below 50% 2132 | -10/Subcaves | Visited 4L-MR0's lab 2165 | -10/Subcaves | Found Flightbrick 2242 | -10/Subcaves | Discovered new exit (range 16) 2263 | -10/Subcaves | Destroyed by RW-7PV(R) with Subdweller Shrapnel Launcher Last Messages --------------- prototype ended up, probably tossed aside somewhere as if it were useless junk..." 02148_ System corrupted: Energy discharge (-51). 02153_ Dropped Lgt. Treads. 02159_ Acquired Lgt. Treads. 02163_ Dropped Lgt. Angular Momentum Engine. 02163_ Dropped Seismic Detector. 02164_ Dropped Targeting Computer. 02164_ Dropped Lgt. Assault Rifle. 02165_ Dropped Grenade Launcher. 02165_ Acquired Flightbrick. 02176_ Acquired Grenade Launcher. 02236_ System corrupted: Energy discharge (-46). 02242_ EXIT=FOUND 02251_ S-10 Pest destroyed. 02256_ Lgt. Ion Engine fries itself beyond repair. 02256_ Flight Unit fries itself beyond repair. 02257_ Lgt. Angular Momentum Engine destroyed. 02260_ Lgt. Assault Rifle fries itself beyond repair. 02263_ Lgt. Ion Engine fries itself beyond repair. Map ----- +----------------------------------------------------+ | ?????????????????????????????????????????????????? | | ?????????????????????????????????????????????????? | | ?????????????????????????????????????????????????? | | ?????????????????????????????????????????????????? | | ?????????????????????????????????????????????????? | | ?????????????????????????????????????????????????? | | ?????????????????????????????????????????????????? | | ?????????????????????????????????????????????????? | | ?????????????????????????????????????????????????? | | ?????????????????????????????????????????????????? | | ?????????????????????????????????????????????????? | | ?????????????????????????????????????????????????? | | ?????????????????????????????